fUSD/lending_fUSD_20260522
["ID","MTS","AMOUNT","RATE_DAILY","PERIOD"]
[422805772,1779427832000,-165.88,0.00011052,2]
[422805770,1779427832000,-771.36,0.00010865,2]
[422805773,1779427832000,-270.05,0.00011204,2]
[422805777,1779427832000,-581.0,0.00012082,2]
[422805775,1779427832000,-255.0,0.00011737,2]
[422805774,1779427832000,-270.05,0.00011557,2]
[422805776,1779427832000,-270.05,0.00011909,2]
[422805778,1779427832000,-771.36,0.00012223,2]
[422805780,1779427832000,-165.88,0.00012433,2]
[422805767,1779427832000,-315.69075432,0.000107,2]
[422805784,1779427832000,-270.05,0.00012967,2]
[422805788,1779427832000,-2500.0,0.00013498,2]
[422805781,1779427832000,-270.05,0.00012614,2]
[422805795,1779427832000,-771.36,0.00013581,2]
[422805793,1779427832000,-1054.11656502,0.00013541,2]
[422805782,1779427832000,-433.0,0.00012871,2]
[422805791,1779427832000,-725.57271868,0.00013541,2]
[422805797,1779427832000,-216.86259207,0.00013588,2]
[422805799,1779427832000,-216.77202002,0.00013597,2]
[422805768,1779427832000,-53225.77242704,0.000107,2]
[422805765,1779427832000,-4725.39727521,0.000107,2]
[422805766,1779427832000,-932.31258695,0.000107,2]
[422805747,1779427832000,-141.59975804,9.088e-05,2]
[422805786,1779427832000,-270.05,0.0001332,2]
[422805748,1779427832000,-250.0,9.265e-05,2]
[422805749,1779427832000,-270.05,9.441e-05,2]
[422805751,1779427832000,-256.15278345,9.794e-05,2]
[422805750,1779427832000,-270.05,9.794e-05,2]
[422805757,1779427832000,-1303.82447637,0.000107,2]
[422805755,1779427832000,-383.44,0.0001058,2]
[422805761,1779427832000,-3319.77029272,0.000107,2]
[422805758,1779427832000,-1281.47839901,0.000107,2]
[422805752,1779427832000,-250.0,9.997e-05,2]
[422805753,1779427832000,-270.05,0.00010146,2]
[422805759,1779427832000,-575.75,0.000107,2]
[422805754,1779427832000,-270.05,0.00010499,2]
[422805756,1779427832000,-150.0,0.00010699,2]
[422805760,1779427832000,-491.91258708,0.000107,2]
[422805762,1779427832000,-328.07007432,0.000107,2]
[422805763,1779427832000,-931.70372915,0.000107,2]
[422805764,1779427832000,-1263.52532736,0.000107,2]
[422805769,1779427832000,-270.05,0.00010851,2]
[422805779,1779427832000,-270.05,0.00012262,2]
[422805844,1779427832000,-500.0,0.00013597,2]
[422805802,1779427832000,-500.0,0.00013597,2]
[422805828,1779427832000,-500.0,0.00013597,2]
[422805830,1779427832000,-500.0,0.00013597,2]
[422805840,1779427832000,-500.0,0.00013597,2]
[422805841,1779427832000,-500.0,0.00013597,2]
[422805838,1779427832000,-500.0,0.00013597,2]
[422805831,1779427832000,-500.0,0.00013597,2]
[422805829,1779427832000,-500.0,0.00013597,2]
[422805833,1779427832000,-500.0,0.00013597,2]
[422805839,1779427832000,-500.0,0.00013597,2]
[422805832,1779427832000,-500.0,0.00013597,2]
[422805837,1779427832000,-500.0,0.00013597,2]
[422805834,1779427832000,-500.0,0.00013597,2]
[422805836,1779427832000,-500.0,0.00013597,2]
[422805843,1779427832000,-151.74041401,0.00013597,2]
[422805842,1779427832000,-500.0,0.00013597,2]
[422805847,1779427832000,-500.0,0.00013597,2]
[422805846,1779427832000,-500.0,0.00013597,2]
[422805845,1779427832000,-500.0,0.00013597,2]
[422805807,1779427832000,-475.5279009,0.00013597,2]
[422805823,1779427832000,-500.0,0.00013597,2]
[422805824,1779427832000,-500.0,0.00013597,2]
[422805835,1779427832000,-500.0,0.00013597,2]
[422805825,1779427832000,-500.0,0.00013597,2]
[422805827,1779427832000,-500.0,0.00013597,2]
[422805803,1779427832000,-500.0,0.00013597,2]
[422805805,1779427832000,-588.80954487,0.00013597,2]
[422805812,1779427832000,-500.0,0.00013597,2]
[422805801,1779427832000,-201.46231881,0.00013597,2]
[422805813,1779427832000,-500.0,0.00013597,2]
[422805809,1779427832000,-500.0,0.00013597,2]
[422805808,1779427832000,-488.02309942,0.00013597,2]
[422805810,1779427832000,-500.0,0.00013597,2]
[422805811,1779427832000,-500.0,0.00013597,2]
[422805814,1779427832000,-500.0,0.00013597,2]
[422805817,1779427832000,-450.93895543,0.00013597,2]
[422805816,1779427832000,-500.0,0.00013597,2]
[422805818,1779427832000,-478.9329186,0.00013597,2]
[422805822,1779427832000,-500.0,0.00013597,2]
[422805821,1779427832000,-500.0,0.00013597,2]
[422805819,1779427832000,-500.0,0.00013597,2]
[422805820,1779427832000,-500.0,0.00013597,2]
[422805815,1779427832000,-500.0,0.00013597,2]
[422805826,1779427832000,-500.0,0.00013597,2]
[422805869,1779427833000,-500.0,0.00013597,2]
[422805860,1779427833000,-500.0,0.00013597,2]
[422805863,1779427833000,-500.0,0.00013597,2]
[422805866,1779427833000,-500.0,0.00013597,2]
[422805867,1779427833000,-500.0,0.00013597,2]
[422805868,1779427833000,-500.0,0.00013597,2]
[422805871,1779427833000,-453.30758092,0.00013597,2]
[422805870,1779427833000,-500.0,0.00013597,2]
[422805864,1779427833000,-500.0,0.00013597,2]
[422805873,1779427833000,-500.0,0.00013597,2]
[422805861,1779427833000,-500.0,0.00013597,2]
[422805852,1779427833000,-500.0,0.00013597,2]
[422805862,1779427833000,-500.0,0.00013597,2]
[422805856,1779427833000,-500.0,0.00013597,2]
[422805857,1779427833000,-500.0,0.00013597,2]
[422805858,1779427833000,-500.0,0.00013597,2]
[422805855,1779427833000,-500.0,0.00013597,2]
[422805854,1779427833000,-500.0,0.00013597,2]
[422805849,1779427833000,-500.0,0.00013597,2]
[422805851,1779427833000,-500.0,0.00013597,2]
[422805850,1779427833000,-500.0,0.00013597,2]
[422805848,1779427833000,-500.0,0.00013597,2]
[422805853,1779427833000,-500.0,0.00013597,2]
[422805865,1779427833000,-500.0,0.00013597,2]
[422805859,1779427833000,-500.0,0.00013597,2]
[422805872,1779427833000,-500.0,0.00013597,2]
[422805888,1779427833000,-500.0,0.00013597,2]
[422805876,1779427833000,-500.0,0.00013597,2]
[422805900,1779427833000,-1769.08724703,0.00013598,2]
[422805898,1779427833000,-1085.39999998,0.00013598,2]
[422805874,1779427833000,-500.0,0.00013597,2]
[422805897,1779427833000,-829.98709775,0.00013598,2]
[422805893,1779427833000,-71315.45120594,0.00013598,2]
[422805896,1779427833000,-1364.66772965,0.00013598,2]
[422805894,1779427833000,-159305.56418897,0.00013598,2]
[422805895,1779427833000,-7858.35083406,0.00013598,2]
[422805891,1779427833000,-500.0,0.00013597,2]
[422805890,1779427833000,-250.0,0.00013597,2]
[422805892,1779427833000,-113159.34001472,0.00013598,2]
[422805887,1779427833000,-500.0,0.00013597,2]
[422805899,1779427833000,-292.91733824,0.00013598,2]
[422805885,1779427833000,-500.0,0.00013597,2]
[422805886,1779427833000,-500.0,0.00013597,2]
[422805881,1779427833000,-500.0,0.00013597,2]
[422805882,1779427833000,-500.0,0.00013597,2]
[422805879,1779427833000,-646.53112887,0.00013597,2]
[422805880,1779427833000,-500.0,0.00013597,2]
[422805878,1779427833000,-500.0,0.00013597,2]
[422805877,1779427833000,-500.0,0.00013597,2]
[422805875,1779427833000,-500.0,0.00013597,2]
[422805883,1779427833000,-500.0,0.00013597,2]
[422805884,1779427833000,-500.0,0.00013597,2]
[422805889,1779427833000,-500.0,0.00013597,2]
[422805903,1779427838000,-90235.4769221,0.00013598,2]
[422805902,1779427838000,-500.0,0.00013597,2]
[422805905,1779427838000,-2023.2261267,0.00013598,2]
[422805908,1779427838000,-3501.60150192,0.00013598,2]
[422805904,1779427838000,-465.29519956,0.00013598,2]
[422806047,1779427840000,-500.0,0.00013698,2]
[422806046,1779427840000,-500.0,0.00013698,2]
[422806045,1779427840000,-625.7470238,0.00013698,2]
[422806044,1779427840000,-500.0,0.00013698,2]
[422806042,1779427840000,-500.0,0.00013698,2]
[422806037,1779427840000,-151.07,0.00013641,2]
[422806041,1779427840000,-500.0,0.00013698,2]
[422806036,1779427840000,-1901.432,0.00013641,2]
[422806035,1779427840000,-750344.70059338,0.00013598,2]
[422806040,1779427840000,-500.0,0.00013698,2]
[422806039,1779427840000,-1054.116565,0.00013692,2]
[422806053,1779427840000,-500.0,0.00013698,2]
[422806038,1779427840000,-270.05,0.00013672,2]
[422806048,1779427840000,-500.0,0.00013698,2]
[422806043,1779427840000,-500.0,0.00013698,2]
[422806049,1779427840000,-500.0,0.00013698,2]
[422806051,1779427840000,-501.2128294,0.00013698,2]
[422806060,1779427840000,-500.0,0.00013698,2]
[422806061,1779427840000,-500.0,0.00013698,2]
[422806058,1779427840000,-519.2209323,0.00013698,2]
[422806057,1779427840000,-500.0,0.00013698,2]
[422806063,1779427840000,-500.0,0.00013698,2]
[422806065,1779427840000,-500.0,0.00013698,2]
[422806056,1779427840000,-500.0,0.00013698,2]
[422806059,1779427840000,-500.0,0.00013698,2]
[422806064,1779427840000,-500.0,0.00013698,2]
[422806054,1779427840000,-500.0,0.00013698,2]
[422806055,1779427840000,-500.0,0.00013698,2]
[422806052,1779427840000,-500.0,0.00013698,2]
[422806050,1779427840000,-500.0,0.00013698,2]
[422806062,1779427840000,-500.0,0.00013698,2]
[422806107,1779427841000,-500.0,0.00013698,2]
[422806101,1779427841000,-500.0,0.00013698,2]
[422806111,1779427841000,-500.0,0.00013698,2]
[422806109,1779427841000,-500.0,0.00013698,2]
[422806110,1779427841000,-500.0,0.00013698,2]
[422806099,1779427841000,-500.0,0.00013698,2]
[422806102,1779427841000,-500.0,0.00013698,2]
[422806108,1779427841000,-500.0,0.00013698,2]
[422806098,1779427841000,-500.0,0.00013698,2]
[422806100,1779427841000,-500.0,0.00013698,2]
[422806103,1779427841000,-500.0,0.00013698,2]
[422806112,1779427841000,-500.0,0.00013698,2]
[422806106,1779427841000,-500.0,0.00013698,2]
[422806115,1779427841000,-500.0,0.00013698,2]
[422806105,1779427841000,-506.04581442,0.00013698,2]
[422806113,1779427841000,-500.0,0.00013698,2]
[422806118,1779427841000,-500.0,0.00013698,2]
[422806124,1779427841000,-500.0,0.00013698,2]
[422806125,1779427841000,-500.0,0.00013698,2]
[422806117,1779427841000,-226.75849924,0.00013698,2]
[422806096,1779427841000,-690.92,0.00013698,2]
[422806123,1779427841000,-500.0,0.00013698,2]
[422806114,1779427841000,-536.32116482,0.00013698,2]
[422806119,1779427841000,-500.0,0.00013698,2]
[422806121,1779427841000,-500.0,0.00013698,2]
[422806120,1779427841000,-500.0,0.00013698,2]
[422806122,1779427841000,-500.0,0.00013698,2]
[422806104,1779427841000,-500.0,0.00013698,2]
[422806095,1779427841000,-690.92,0.00013698,2]
[422806082,1779427841000,-690.92,0.00013698,2]
[422806094,1779427841000,-690.92,0.00013698,2]
[422806066,1779427841000,-500.0,0.00013698,2]
[422806067,1779427841000,-478.0,0.00013698,2]
[422806071,1779427841000,-500.0,0.00013698,2]
[422806069,1779427841000,-500.0,0.00013698,2]
[422806070,1779427841000,-500.0,0.00013698,2]
[422806073,1779427841000,-500.0,0.00013698,2]
[422806068,1779427841000,-500.0,0.00013698,2]
[422806075,1779427841000,-500.0,0.00013698,2]
[422806077,1779427841000,-474.62307338,0.00013698,2]
[422806076,1779427841000,-500.0,0.00013698,2]
[422806074,1779427841000,-500.0,0.00013698,2]
[422806079,1779427841000,-690.92,0.00013698,2]
[422806078,1779427841000,-690.92,0.00013698,2]
[422806083,1779427841000,-690.92,0.00013698,2]
[422806088,1779427841000,-690.92,0.00013698,2]
[422806084,1779427841000,-690.92,0.00013698,2]
[422806086,1779427841000,-690.92,0.00013698,2]
[422806089,1779427841000,-690.92,0.00013698,2]
[422806085,1779427841000,-690.92,0.00013698,2]
[422806087,1779427841000,-690.92,0.00013698,2]
[422806081,1779427841000,-690.92,0.00013698,2]
[422806137,1779427841000,-597.94,0.00013698,2]
[422806080,1779427841000,-690.92,0.00013698,2]
[422806091,1779427841000,-500.28174121,0.00013698,2]
[422806090,1779427841000,-690.92,0.00013698,2]
[422806092,1779427841000,-690.92,0.00013698,2]
[422806097,1779427841000,-690.92,0.00013698,2]
[422806093,1779427841000,-690.92,0.00013698,2]
[422806127,1779427841000,-500.0,0.00013698,2]
[422806116,1779427841000,-500.0,0.00013698,2]
[422806126,1779427841000,-500.0,0.00013698,2]
[422806158,1779427841000,-610.0,0.00014123,2]
[422806160,1779427841000,-313.0,0.0001413,5]
[422806157,1779427841000,-250.0,0.00014,2]
[422806167,1779427841000,-690.99,0.00014259,2]
[422806168,1779427841000,-1054.116565,0.00014296,2]
[422806165,1779427841000,-690.92,0.00014259,2]
[422806166,1779427841000,-690.92,0.00014259,2]
[422806176,1779427841000,-1054.116565,0.00014749,2]
[422806173,1779427841000,-597.94,0.00014688,2]
[422806170,1779427841000,-1054.116565,0.00014447,2]
[422806178,1779427841000,-479.78,0.00014802,2]
[422806177,1779427841000,-700.0,0.00014752,2]
[422806174,1779427841000,-1534.5,0.00014688,2]
[422806159,1779427841000,-725.57271866,0.00014123,2]
[422806138,1779427841000,-597.94,0.00013698,2]
[422806171,1779427841000,-725.57271866,0.00014512,2]
[422806172,1779427841000,-1054.116565,0.00014598,2]
[422806180,1779427841000,-383.44,0.00014812,2]
[422806181,1779427841000,-500.0,0.00014892,2]
[422806184,1779427841000,-500.0,0.00014892,2]
[422806185,1779427841000,-32033.5159679,0.00014893,2]
[422806182,1779427841000,-500.0,0.00014892,2]
[422806179,1779427841000,-481.62,0.00014802,2]
[422806183,1779427841000,-500.0,0.00014892,2]
[422806186,1779427841000,-68012.4190692,0.00014893,2]
[422806189,1779427841000,-108018.4649749,0.00014893,2]
[422806188,1779427841000,-4794.0579951,0.00014893,2]
[422806187,1779427841000,-264185.5137837,0.00014893,2]
[422806169,1779427841000,-725.57271866,0.00014318,2]
[422806156,1779427841000,-1054.116565,0.00013994,2]
[422806175,1779427841000,-725.57271866,0.00014706,2]
[422806152,1779427841000,-1054.116565,0.00013843,2]
[422806162,1779427841000,-153.41,0.00014173,2]
[422806131,1779427841000,-500.0,0.00013698,2]
[422806129,1779427841000,-500.0,0.00013698,2]
[422806130,1779427841000,-500.0,0.00013698,2]
[422806134,1779427841000,-597.94,0.00013698,2]
[422806132,1779427841000,-597.94,0.00013698,2]
[422806128,1779427841000,-500.0,0.00013698,2]
[422806133,1779427841000,-597.94,0.00013698,2]
[422806135,1779427841000,-597.94,0.00013698,2]
[422806141,1779427841000,-1534.5,0.00013698,2]
[422806139,1779427841000,-597.94,0.00013698,2]
[422806151,1779427841000,-165.88,0.00013814,2]
[422806150,1779427841000,-725.57271866,0.00013735,2]
[422806140,1779427841000,-597.94,0.00013698,2]
[422806136,1779427841000,-597.94,0.00013698,2]
[422806144,1779427841000,-1534.5,0.00013698,2]
[422806161,1779427841000,-1054.116565,0.00014145,2]
[422806142,1779427841000,-1534.5,0.00013698,2]
[422806154,1779427841000,-597.94,0.00013989,2]
[422806155,1779427841000,-1534.5,0.00013989,2]
[422806163,1779427841000,-690.92,0.00014259,2]
[422806153,1779427841000,-725.57271866,0.00013929,2]
[422806143,1779427841000,-1534.5,0.00013698,2]
[422806164,1779427841000,-690.92,0.00014259,2]
[422806149,1779427841000,-1534.5,0.00013698,2]
[422806148,1779427841000,-1534.5,0.00013698,2]
[422806147,1779427841000,-1534.5,0.00013698,2]
[422806145,1779427841000,-1534.5,0.00013698,2]
[422806146,1779427841000,-1534.5,0.00013698,2]
[422806206,1779427842000,-520.45120538,0.00014999,2]
[422806208,1779427842000,-500.0,0.00014999,2]
[422806213,1779427842000,-500.0,0.00014999,2]
[422806216,1779427842000,-500.0,0.00014999,2]
[422806215,1779427842000,-500.0,0.00014999,2]
[422806214,1779427842000,-500.0,0.00014999,2]
[422806210,1779427842000,-500.0,0.00014999,2]
[422806225,1779427842000,-597.94,0.00014999,2]
[422806227,1779427842000,-597.94,0.00014999,2]
[422806219,1779427842000,-500.0,0.00014999,2]
[422806228,1779427842000,-597.94,0.00014999,2]
[422806218,1779427842000,-400.63127979,0.00014999,2]
[422806204,1779427842000,-500.0,0.00014999,2]
[422806221,1779427842000,-500.0,0.00014999,2]
[422806209,1779427842000,-500.0,0.00014999,2]
[422806205,1779427842000,-500.0,0.00014999,2]
[422806193,1779427842000,-2000.0,0.000149,2]
[422806212,1779427842000,-500.0,0.00014999,2]
[422806224,1779427842000,-597.94,0.00014999,2]
[422806190,1779427842000,-10860.80078222,0.000149,2]
[422806203,1779427842000,-1227.99243558,0.00014999,5]
[422806199,1779427842000,-1534.5,0.00014924,2]
[422806195,1779427842000,-528.743687,0.000149,2]
[422806196,1779427842000,-8300.65584822,0.000149,2]
[422806211,1779427842000,-500.0,0.00014999,2]
[422806201,1779427842000,-216.86259207,0.0001499,2]
[422806192,1779427842000,-282.16754384,0.000149,2]
[422806202,1779427842000,-151.0,0.00014997,2]
[422806194,1779427842000,-725.57271866,0.000149,2]
[422806198,1779427842000,-597.94,0.00014924,2]
[422806200,1779427842000,-771.36,0.00014939,2]
[422806207,1779427842000,-500.0,0.00014999,2]
[422806197,1779427842000,-881.4084174,0.000149,2]
[422806217,1779427842000,-500.0,0.00014999,2]
[422806191,1779427842000,-1856.43022821,0.000149,3]
[422806223,1779427842000,-500.0,0.00014999,2]
[422806242,1779427842000,-1534.5,0.00014999,2]
[422806249,1779427842000,-500.0,0.00014999,2]
[422806244,1779427842000,-1534.5,0.00014999,2]
[422806260,1779427842000,-520.74509431,0.00015,2]
[422806248,1779427842000,-500.0,0.00014999,2]
[422806250,1779427842000,-500.0,0.00014999,2]
[422806247,1779427842000,-1534.62168498,0.00014999,2]
[422806252,1779427842000,-500.0,0.00014999,2]
[422806245,1779427842000,-1534.5,0.00014999,2]
[422806251,1779427842000,-500.0,0.00014999,2]
[422806255,1779427842000,-500.0,0.00014999,2]
[422806258,1779427842000,-264.0,0.00015,5]
[422806222,1779427842000,-500.0,0.00014999,2]
[422806259,1779427842000,-192146.15618671,0.00015,2]
[422806256,1779427842000,-500.0,0.00014999,2]
[422806246,1779427842000,-1534.5,0.00014999,2]
[422806253,1779427842000,-500.0,0.00014999,2]
[422806257,1779427842000,-513.85470887,0.00014999,2]
[422806243,1779427842000,-1534.5,0.00014999,2]
[422806226,1779427842000,-597.94,0.00014999,2]
[422806220,1779427842000,-500.0,0.00014999,2]
[422806230,1779427842000,-597.94,0.00014999,2]
[422806229,1779427842000,-597.94,0.00014999,2]
[422806241,1779427842000,-1534.5,0.00014999,2]
[422806232,1779427842000,-597.94,0.00014999,2]
[422806231,1779427842000,-597.94,0.00014999,2]
[422806240,1779427842000,-1534.5,0.00014999,2]
[422806238,1779427842000,-1534.5,0.00014999,2]
[422806239,1779427842000,-1534.5,0.00014999,2]
[422806236,1779427842000,-1534.5,0.00014999,2]
[422806234,1779427842000,-597.94,0.00014999,2]
[422806235,1779427842000,-598.08,0.00014999,2]
[422806237,1779427842000,-1534.5,0.00014999,2]
[422806233,1779427842000,-597.94,0.00014999,2]
[422806254,1779427842000,-500.0,0.00014999,2]
[422806281,1779427854000,-3159.60888795,0.00015,2]
[422806279,1779427854000,-477.875933,0.000149,2]
[422806278,1779427854000,-576.240632,0.000149,2]
[422806280,1779427854000,-112.88188711,0.00015,2]
[422806283,1779427854000,-6372.54260446,0.00015,2]
[422806282,1779427854000,-2618.31080612,0.00015,2]
[422806286,1779427854000,-2650.43419949,0.00015,2]
[422806285,1779427854000,-7735.7294912,0.00015,2]
[422806287,1779427854000,-353.49406,0.00015,2]
[422806289,1779427854000,-735.84,0.00015,2]
[422806288,1779427854000,-663.48513832,0.00015,2]
[422806290,1779427854000,-2522.38800351,0.00015,2]
[422806291,1779427854000,-982.82777629,0.00015,2]
[422806284,1779427854000,-11337.72657865,0.00015,2]
[422806293,1779428179000,-576.240632,7.916e-05,2]
[422806294,1779428512000,-22.899368,7.916e-05,2]
[422806295,1779428641000,801.98,5.823e-05,2]
[422806297,1779428641000,788.51124373,6.117e-05,2]
[422806298,1779428641000,801.98,6.412e-05,2]
[422806296,1779428641000,13.46875627,6.117e-05,2]
[422806304,1779428642000,724.75373119,7.589e-05,2]
[422806303,1779428642000,77.22626881,7.589e-05,2]
[422806302,1779428642000,801.98,7.295e-05,2]
[422806301,1779428642000,801.98,7e-05,2]
[422806299,1779428642000,446.33751254,6.706e-05,2]
[422806300,1779428642000,355.64248746,6.706e-05,2]
[422806305,1779428741000,-473.81376757,7.884e-05,2]
[422806306,1779428745000,510.0,0.00021,120]
[422806308,1779428754000,-159.84,7.907e-05,2]
[422806309,1779428754000,-336.87996749,7.935e-05,2]
[422806307,1779428754000,-328.16623243,7.884e-05,2]
[422806310,1779428800000,43970.80078222,0.00021,120]
[422806311,1779428803000,-156.79569042,7.935e-05,2]
[422806313,1779428922000,-218.06163,7.949e-05,2]
[422806315,1779428965000,-530.28206217,7.962e-05,2]
[422806316,1779428965000,-250.0,8.012e-05,2]
[422806314,1779428965000,-31.93837,7.949e-05,2]
[422806318,1779428965000,-150.0,8.12e-05,2]
[422806320,1779428965000,-242.0,8.2e-05,2]
[422806319,1779428965000,-801.98,8.178e-05,2]
[422806322,1779428965000,-215.27762834,8.696e-05,2]
[422806321,1779428965000,-801.98,8.473e-05,2]
[422806323,1779428965000,-1200.0,8.706e-05,2]
[422806317,1779428965000,-150.0,8.041e-05,2]
[422806324,1779428965000,-208.7374384,8.72e-05,2]
[422806325,1779428965000,-301.31267001,8.729e-05,2]
[422806334,1779428965000,-1433.37851647,9.577e-05,2]
[422806333,1779428965000,-801.98,9.356e-05,2]
[422806332,1779428965000,-801.98,9.061e-05,2]
[422806331,1779428965000,-801.98,8.767e-05,2]
[422806329,1779428965000,-300.0,8.765e-05,2]
[422806328,1779428965000,-250.0,8.729e-05,2]
[422806327,1779428965000,-277.48625205,8.729e-05,2]
[422806326,1779428965000,-300.0,8.729e-05,2]
[422806330,1779428965000,-1200.0,8.766e-05,2]
[422806372,1779429032000,-1227.99243558,0.00013597,3]
[422806356,1779429032000,-801.98,0.00011417,2]
[422806354,1779429032000,-801.98,0.00010828,2]
[422806359,1779429032000,-159.84,0.0001186,2]
[422806361,1779429032000,-205.0,0.00012694,2]
[422806362,1779429032000,-420.0,0.00012712,2]
[422806360,1779429032000,-1680.0,0.0001191,2]
[422806369,1779429032000,-2500.0,0.00013498,2]
[422806364,1779429032000,-153.41,0.0001319,2]
[422806365,1779429032000,-2000.0,0.00013498,2]
[422806366,1779429032000,-2489.9558,0.00013498,2]
[422806368,1779429032000,-4171.6214,0.00013498,2]
[422806371,1779429032000,-151.0,0.00013595,2]
[422806370,1779429032000,-216.86259208,0.00013588,2]
[422806357,1779429032000,-300.0,0.00011575,2]
[422806363,1779429032000,-486.0,0.00013101,2]
[422806358,1779429032000,-255.0,0.00011576,2]
[422806342,1779429032000,-250.0,9.944e-05,2]
[422806352,1779429032000,-250.0,0.00010615,2]
[422806337,1779429032000,-605.6100191,9.65e-05,2]
[422806339,1779429032000,-250.0,9.767e-05,2]
[422806338,1779429032000,-196.3699809,9.65e-05,2]
[422806341,1779429032000,-54.2099809,9.884e-05,2]
[422806340,1779429032000,-105.6300191,9.884e-05,2]
[422806343,1779429032000,-181.2085191,9.945e-05,2]
[422806345,1779429032000,-161.90935226,0.0001,2]
[422806344,1779429032000,-620.7714809,9.945e-05,2]
[422806348,1779429032000,-473.76631164,0.00010239,2]
[422806346,1779429032000,-161.90935226,0.0001,2]
[422806347,1779429032000,-328.21368836,0.00010239,2]
[422806350,1779429032000,-150.0,0.00010552,2]
[422806349,1779429032000,-801.98,0.00010534,2]
[422806353,1779429032000,-1200.0,0.00010827,2]
[422806351,1779429032000,-153.41,0.00010552,2]
[422806355,1779429032000,-801.98,0.00011123,2]
[422806373,1779429032000,-1227.99243558,0.00013597,3]
[422806402,1779429032000,-500.0,0.00013597,2]
[422806375,1779429032000,-275.43699095,0.00013597,2]
[422806417,1779429032000,-281.60380507,0.00013597,2]
[422806418,1779429032000,-500.0,0.00013597,2]
[422806422,1779429032000,-500.0,0.00013597,2]
[422806421,1779429032000,-281.60380507,0.00013597,2]
[422806423,1779429032000,-281.60380507,0.00013597,2]
[422806424,1779429032000,-500.0,0.00013597,2]
[422806425,1779429032000,-281.60380507,0.00013597,2]
[422806428,1779429032000,-500.0,0.00013597,2]
[422806430,1779429032000,-500.0,0.00013597,2]
[422806429,1779429032000,-281.60380507,0.00013597,2]
[422806426,1779429032000,-500.0,0.00013597,2]
[422806432,1779429032000,-500.0,0.00013597,2]
[422806431,1779429032000,-281.60380507,0.00013597,2]
[422806433,1779429032000,-281.60380507,0.00013597,2]
[422806377,1779429032000,-500.0,0.00013597,2]
[422806420,1779429032000,-500.0,0.00013597,2]
[422806416,1779429032000,-500.0,0.00013597,2]
[422806427,1779429032000,-281.60380507,0.00013597,2]
[422806413,1779429032000,-281.60380507,0.00013597,2]
[422806381,1779429032000,-250.0,0.00013597,2]
[422806419,1779429032000,-281.60380507,0.00013597,2]
[422806379,1779429032000,-500.0,0.00013597,2]
[422806383,1779429032000,-500.0,0.00013597,2]
[422806394,1779429032000,-500.0,0.00013597,2]
[422806386,1779429032000,-500.0,0.00013597,2]
[422806388,1779429032000,-180.86410801,0.00013597,2]
[422806390,1779429032000,-500.0,0.00013597,2]
[422806396,1779429032000,-281.60380507,0.00013597,2]
[422806392,1779429032000,-163.32667662,0.00013597,2]
[422806409,1779429032000,-281.60380507,0.00013597,2]
[422806398,1779429032000,-500.0,0.00013597,2]
[422806400,1779429032000,-281.60380507,0.00013597,2]
[422806407,1779429032000,-500.0,0.00013597,2]
[422806405,1779429032000,-281.60380507,0.00013597,2]
[422806410,1779429032000,-500.0,0.00013597,2]
[422806444,1779429033000,-500.0,0.00013597,2]